Workbook

Sheet 表3-1 新增地方政府专项债券情况表
A1: 0 | B1: DEBT_T_XXGK_CXZQSY | C1: AND T.AD_CODE_GK=441300 AND T.SET_YEAR_GK=2020 AND T.ZWLB_ID=02
A2: 0 | B2: AD_CODE_GK#441300 | C2: AD_CODE#441300 | D2: SET_YEAR_GK#2020 | E2: ad_name#441300 惠州市本级 | F2: ZWLB_ID#02
A3: 0 | B3: ZQ_NAME# | C3: ZQ_CODE# | E3: FXGM_AMT# | F3: FX_DATE# | G3: ZQ_RATE# | H3: ZQQX_NAME# | I3: XMZTZ# | J3: XMZTZ_ZQZJ# | K3: XMYTZ# | L3: XMYTZ_ZQZJ# | M3: REMARK# | N3: set_year# | O3: ZQ_ID# | P3: ZQQX_ID#
A4: 0 | B4: 表3-1
A5: 0 | B5: 2018年--2019年末441300 惠州市本级发行的新增地方政府专项债券情况表
A6: 0 | M6: 单位：亿元
A7: 0 | C7: 债券基本信息 | I7: 债券项目总投资 | K7: 债券项目已实现投资 | M7: 备注
A8: 0 | B8: 债券名称 | C8: 债券编码 | D8: 债券类型 | E8: 债券规模 | F8: 发行时间（年/月/日） | G8: 债券利率(%) | H8: 债券期限 | J8: 其中：债券资金安排 | L8: 其中：债券资金安排
A9: VALID# | B9: 2018年广东省政府专项债券（三期） | C9: 1805129 | D9: 普通专项债券 | E9: 2.97 | F9: 2018-07-09 | G9: 3.37 | H9: 3年 | I9: =I10 -> 25.08 | J9: 2.97 | K9: =K10 -> 5.57 | L9: 2.97 | N9: 2018 | O9: 74B3543D5956A80DE053F1F5600AED92 | P9: 003
B10: 其中：市直 | E10: 2.97 | I10: 25.08 | J10: 2.97 | K10: 5.57 | L10: 2.97
A11: VALID# | B11: 2018年广东省政府专项债券（四期） | C11: 1805130 | D11: 普通专项债券 | E11: 5.95 | F11: 2018-07-09 | G11: 3.69 | H11: 7年 | I11: =I12 -> 214.04 | J11: 5.95 | K11: =K12 -> 12.93 | L11: 5.95 | N11: 2018 | O11: 74F30F6C8029A809E053F1F5600A3A30 | P11: 007
B12: 其中：市直 | E12: 5.95 | I12: 214.04 | J12: 5.95 | K12: 12.93 | L12: 5.95
A13: VALID# | B13: 2018年广东省政府专项债券（五期） | C13: 1805131 | D13: 普通专项债券 | E13: 5.95 | F13: 2018-07-09 | G13: 3.7 | H13: 10年 | I13: =I14 -> 217.80 | J13: 5.95 | K13: =K14 -> 50.20 | L13: 5.95 | N13: 2018 | O13: 74B3543D59BEA80DE053F1F5600AED92 | P13: 010
B14: 其中：市直 | E14: 5.95 | I14: 217.80 | J14: 5.95 | K14: 50.20 | L14: 5.95
A15: VALID# | B15: 2018年广东省（惠州市）土地储备专项债券（一期）--2018年广东省政府专项债券（九期） | C15: 1805135 | D15: 土地储备专项债券 | E15: 6.00 | F15: 2018-07-09 | G15: 3.5 | H15: 5年 | I15: =SUM(I16:I17) -> 27.98 | J15: 6.00 | K15: =SUM(K16:K17) -> 7.30 | L15: 6.00 | N15: 2018 | O15: 74B383C55EE4A80FE053F1F5600A72D2 | P15: 005
B16: 其中：市直 | E16: 2.00 | I16: 3.45 | J16: 2.00 | K16: 2.50 | L16: 2.00
B17: 仲恺区 | E17: 4.00 | I17: 24.53 | J17: 4.00 | K17: 4.80 | L17: 4.00
A18: VALID# | B18: 2018年广东省政府专项债券（三十二期） | C18: 1805375 | D18: 普通专项债券 | E18: 20.00 | F18: 2018-12-20 | G18: 3.67 | H18: 7年 | I18: =I19 -> 60.70 | J18: 20.00 | K18: =K19 -> 42.80 | L18: 20.00 | N18: 2018 | O18: 7DCD68B8F684218CE053F1F5600A2201 | P18: 007
B19: 其中：市直 | E19: 20.00 | I19: 60.70 | J19: 20.00 | K19: 42.80 | L19: 20.00
A20: VALID# | B20: 2019年广东省政府专项债券（十二期） | C20: 104519 | D20: 普通专项债券 | E20: 12.29 | F20: 2019-02-20 | G20: 3.34 | H20: 10年 | I20: =SUM(I21:I23) -> 160.41 | J20: 12.29 | K20: =SUM(K21:K23) -> 84.38 | L20: 12.29 | N20: 2019 | O20: 82D886A0A7776CC6E053F1F5600AD2AD | P20: 010
B21: 其中：市直 | E21: 8.69 | I21: 124.73 | J21: 8.69 | K21: 74.63 | L21: 8.69
B22: 仲恺区 | E22: 1.00 | I22: 18.42 | J22: 1.00 | K22: 7.00 | L22: 1.00
B23: 大亚湾区 | E23: 2.60 | I23: 17.26 | J23: 2.60 | K23: 2.75 | L23: 2.60
A24: VALID# | B24: 2019年广东省土地储备专项债券（三期）--2019年广东省政府专项债券（七期） | C24: 104514 | D24: 土地储备专项债券 | E24: 13.11 | F24: 2019-02-20 | G24: 3.14 | H24: 5年 | I24: =SUM(I25:I27) -> 42.69 | J24: 13.11 | K24: =SUM(K25:K27) -> 26.01 | L24: 13.11 | N24: 2019 | O24: 82CE74FE04906CB6E053F1F5600AB1D6 | P24: 005
B25: 其中：市直 | E25: 2.50 | I25: 3.63 | J25: 2.50 | K25: 3.44 | L25: 2.50
B26: 仲恺区 | E26: 3.00 | I26: 31.45 | J26: 3.00 | K26: 14.96 | L26: 3.00
B27: 大亚湾区 | E27: 7.61 | I27: 7.61 | J27: 7.61 | K27: 7.61 | L27: 7.61
A28: VALID# | B28: 2019年粤港澳大湾区基础设施互联互通建设专项债券（一期）--2019年广东省政府专项债券（二十二期） | C28: 104619 | D28: 其他自平衡专项债券 | E28: 1.00 | F28: 2019-05-29 | G28: 3.57 | H28: 10年 | I28: =I29 -> 5.98 | J28: 1.00 | K28: =K29 -> 5.11 | L28: 1.00 | N28: 2019 | O28: 89EA143C29405468E053F1F5600A704E | P28: 010
B29: 其中：市直 | E29: 1.00 | I29: 5.98 | J29: 1.00 | K29: 5.11 | L29: 1.00
A30: VALID# | B30: 2019年粤港澳大湾区生态环保建设专项债券（三期）--2019年广东省政府专项债券（二十五期） | C30: 104622 | D30: 其他自平衡专项债券 | E30: 1.50 | F30: 2019-05-29 | G30: 3.91 | H30: 20年 | I30: =I31 -> 8.82 | J30: 1.50 | K30: =K31 -> 3.42 | L30: 1.50 | N30: 2019 | O30: 89DBA87F03D05484E053F1F5600AC799 | P30: 020
B31: 其中：市直 | E31: 1.50 | I31: 8.82 | J31: 1.50 | K31: 3.42 | L31: 1.50
A32: VALID# | B32: 2019年粤港澳大湾区生态环保建设专项债券（一期）--2019年广东省政府专项债券（二十三期） | C32: 104620 | D32: 其他自平衡专项债券 | E32: 1.70 | F32: 2019-05-29 | G32: 3.57 | H32: 10年 | I32: =SUM(I33:I34) -> 11.65 | J32: 1.70 | K32: =SUM(K33:K34) -> 6.08 | L32: 1.70 | N32: 2019 | O32: 89EA143C29835468E053F1F5600A704E | P32: 010
B33: 其中：市直 | E33: 0.40 | I33: 5.78 | J33: 0.40 | K33: 4.78 | L33: 0.40
B34: 仲恺区 | E34: 1.30 | I34: 5.87 | J34: 1.30 | K34: 1.30 | L34: 1.30
A35: VALID# | B35: 2019年粤港澳大湾区土地储备专项债券（二期）--2019年广东省政府专项债券（十八期） | C35: 104615 | D35: 土地储备专项债券 | E35: 21.12 | F35: 2019-05-29 | G35: 3.6 | H35: 7年 | I35: =SUM(I36:I38) -> 75.37 | J35: 21.12 | K35: =SUM(K36:K38) -> 37.42 | L35: 21.12 | N35: 2019 | O35: 89E987568174548CE053F1F5600AB499 | P35: 007
B36: 其中：市直 | E36: 7.82 | I36: 19.49 | J36: 7.82 | K36: 10.14 | L36: 7.82
B37: 仲恺区 | E37: 5.30 | I37: 45.24 | J37: 5.30 | K37: 17.98 | L37: 5.30
B38: 大亚湾区 | E38: 8.00 | I38: 10.64 | J38: 8.00 | K38: 9.30 | L38: 8.00
A39: VALID# | B39: 2019年粤港澳大湾区科创平台建设专项债券（一期）--2019年广东省政府专项债券（三十八期） | C39: 1905217 | D39: 其他自平衡专项债券 | E39: 1.08 | F39: 2019-06-17 | G39: 3.5 | H39: 10年 | I39: =I40 -> 17.89 | J39: 1.08 | K39: =K40 -> 5.88 | L39: 1.08 | N39: 2019 | O39: 8BA92788D77B98A8E053F1F5600A9419 | P39: 010
B40: 其中：市直 | E40: 1.08 | I40: 17.89 | J40: 1.08 | K40: 5.88 | L40: 1.08
B41: 备注：市本级含市直、仲恺区、大亚湾区

Sheet 表3-2 新增地方政府专项债券资金收支情况表
A1: 0 | B1: DEBT_T_XXGK_CXSRZC | C1: AND T.AD_CODE_GK=441300 AND T.SET_YEAR_GK=2020 AND T.ZWLB_ID='02'
A2: 0 | B2: AD_CODE_GK#441300 | C2: AD_CODE#441300 | D2: SET_YEAR_GK#2020 | F2: AD_NAME#441300 惠州市本级 | G2: SET_YEAR#2020 | H2: ZWLB_ID#02
A3: 0 | C3: ZQ_NAME# | D3: SR_AMT# | E3: ZQ_ID# | F3: GNFL_NAME# | G3: ZC_AMT# | H3: GNFL_CODE#
A4: 0 | B4: 表3-2
A5: 0 | B5: 2018年--2019年末441300 惠州市本级发行的新增地方政府专项债券资金收支情况表
A6: 0 | G6: 单位：亿元
A7: 0 | B7: 序号 | C7: 2018年--2019年末新增专项债券资金收入 | F7: 2018年--2019年末新增专项债券资金安排的支出
A8: 0 | C8: 债券名称 | D8: 金额 | F8: 支出功能分类 | G8: 金额
A9: 0 | B9: 合计 | D9: 92.67 | G9: 92.67
A10: VALID# | B10: 1 | C10: 2019年粤港澳大湾区土地储备专项债券（二期）--2019年广东省政府专项债券（十八期） | D10: 21.12 | E10: 89E987568174548CE053F1F5600AB499 | F10: 212城乡社区支出 | G10: 78.48 | H10: 212
C11: 其中：市直 | D11: 7.82 | F11: 其中：市直 | G11: 47.97
C12: 仲恺区 | D12: 5.30 | F12: 仲恺区 | G12: 12.30
C13: 大亚湾区 | D13: 8.00 | F13: 大亚湾区 | G13: 18.21
A14: VALID# | B14: 2 | C14: 2019年广东省政府专项债券（十二期） | D14: 12.29 | E14: 82D886A0A7776CC6E053F1F5600AD2AD | F14: 229其他支出 | G14: 12.89 | H14: 229
C15: 其中：市直 | D15: 8.69 | F15: 其中：市直 | G15: 10.59
C16: 仲恺区 | D16: 1.00 | F16: 仲恺区 | G16: 2.30
C17: 大亚湾区 | D17: 2.60 | F17: 大亚湾区
A18: VALID# | B18: 3 | C18: 2019年粤港澳大湾区基础设施互联互通建设专项债券（一期）--2019年广东省政府专项债券（二十二期） | D18: 1.00 | E18: 89EA143C29405468E053F1F5600A704E | F18: 230转移性支出 | G18: 1.30 | H18: 230
C19: 其中：市直 | D19: 1.00 | F19: 其中：市直 | G19: 1.30
A20: VALID# | B20: 4 | C20: 2018年广东省（惠州市）土地储备专项债券（一期）--2018年广东省政府专项债券（九期） | D20: 6.00 | E20: 74B383C55EE4A80FE053F1F5600A72D2
C21: 其中：市直 | D21: 2.00
C22: 仲恺区 | D22: 4.00
A23: VALID# | B23: 5 | C23: 2018年广东省政府专项债券（三期） | D23: 2.97 | E23: 74B3543D5956A80DE053F1F5600AED92
C24: 其中：市直 | D24: 2.97
A25: VALID# | B25: 6 | C25: 2018年广东省政府专项债券（五期） | D25: 5.95 | E25: 74B3543D59BEA80DE053F1F5600AED92
C26: 其中：市直 | D26: 5.95
A27: VALID# | B27: 7 | C27: 2019年粤港澳大湾区科创平台建设专项债券（一期）--2019年广东省政府专项债券（三十八期） | D27: 1.08 | E27: 8BA92788D77B98A8E053F1F5600A9419
C28: 其中：市直 | D28: 1.08
A29: VALID# | B29: 8 | C29: 2019年粤港澳大湾区生态环保建设专项债券（一期）--2019年广东省政府专项债券（二十三期） | D29: 1.70 | E29: 89EA143C29835468E053F1F5600A704E
C30: 其中：市直 | D30: 0.40
C31: 仲恺区 | D31: 1.30
A32: VALID# | B32: 9 | C32: 2019年粤港澳大湾区生态环保建设专项债券（三期）--2019年广东省政府专项债券（二十五期） | D32: 1.50 | E32: 89DBA87F03D05484E053F1F5600AC799
C33: 其中：市直 | D33: 1.50
A34: VALID# | B34: 10 | C34: 2018年广东省政府专项债券（三十二期） | D34: 20.00 | E34: 7DCD68B8F684218CE053F1F5600A2201
C35: 其中：市直 | D35: 20.00
A36: VALID# | B36: 11 | C36: 2019年广东省土地储备专项债券（三期）--2019年广东省政府专项债券（七期） | D36: 13.11 | E36: 82CE74FE04906CB6E053F1F5600AB1D6
C37: 其中：市直 | D37: 2.50
C38: 仲恺区 | D38: 3.00
C39: 大亚湾区 | D39: 7.61
A40: VALID# | B40: 12 | C40: 2018年广东省政府专项债券（四期） | D40: 5.95 | E40: 74F30F6C8029A809E053F1F5600A3A30
C41: 其中：市直 | D41: 5.95
B42: 备注：市本级含市直、仲恺区、大亚湾区
